Cogmind - Beta 14 @@@ ROGUE MODE // 2024.08.13 @ 13:22:06 Player: satan5 Result: Heading to fleet! Performance ------------- Evolutions (9) 4500 Regions Visited (31) 6200 Robots Destroyed (178) 890 Value Destroyed (7762) 7762 Prototype IDs (70) 1400 Alien Tech Used (4) 800 Bonus (16087) 16087 TOTAL SCORE: 37639 Bonus ------- Triggered High Security 1000 High Alert Combat Kills 2067 Follower Combat Kills 4792 Met Data Miner 300 Met Warlord at Base 500 MAIN.C Attacked Warlord 500 Used Core Reset Matrix 3000 Met Warlord at Research 2000 Win 3000 Friendly Fire -1072 Cogmind --------- Core Integrity 1600/1600 Matter 120/300 Energy 848/860 System Corruption 0% Temperature Cool (0) Movement Hovering (20) Location To Fleet Rendezvous Parts ------- > --- POWER (2) -------- Light Antimatter Reactor Light Quantum Reactor > --- PROPULSION (7) --- Cooled Antigrav System Cooled Antigrav System Cooled Linear Gravjet Cooled Linear Gravjet Cooled Linear Gravjet Cooled Linear Gravjet Cooled Linear Gravjet > --- UTILITY (13) ----- Large Storage Unit Experimental Energy Well Advanced Sensor Array Experimental Signal Interpreter Long-range Terrain Scanner Improved Energy Mantle Advanced Hacking Suite Experimental Hacking Suite System Mapper Improved System Shield Advanced System Shield Assault Drone Bay (1/2) > --- WEAPON (3) ------- Hypervelocity Railgun Hypervelocity Railgun Nanosword > --- INVENTORY (15) --- Light Antimatter Reactor Light Quantum Reactor Cooled Linear Gravjet Cooled Linear Gravjet Cooled Linear Gravjet Combat Linear Gravjet Combat Linear Gravjet Microwarp Drive Cooled Plasma Rifle Cooled Plasma Rifle Hypervelocity Railgun Hypervelocity Railgun Tactical Quantum Warhead Peak State ------------ > --- POWER ------------ Light Antimatter Reactor Light Quantum Reactor > --- PROPULSION ------- Cooled Antigrav System Cooled Antigrav System Cooled Linear Gravjet Cooled Linear Gravjet Cooled Linear Gravjet Cooled Linear Gravjet Cooled Linear Gravjet > --- UTILITY ---------- Large Storage Unit Experimental Energy Well Advanced Sensor Array Experimental Signal Interpreter Long-range Terrain Scanner Improved Force Field Improved Energy Mantle Advanced Hacking Suite Experimental Hacking Suite System Mapper Improved System Shield Assault Drone Bay > --- WEAPON ----------- Cooled Plasma Rifle Hypervelocity Railgun Hypervelocity Railgun > --- INVENTORY -------- Light Antimatter Reactor Light Quantum Reactor Cooled Linear Gravjet Cooled Linear Gravjet Cooled Linear Gravjet Combat Linear Gravjet Combat Linear Gravjet Combat Linear Gravjet Microwarp Drive Cooled Plasma Rifle Hypervelocity Railgun Hypervelocity Railgun Tactical Quantum Warhead Nanosword [Rating: 211] Favorites ----------- Power Light Antimatter Reactor Engine Light Ion Engine Power Core Enhanced Nuclear Core Reactor Light Antimatter Reactor Propulsion Cooled Gravmag System Leg Aluminum Leg Wheel Armored Huge Wheel Hover Unit Cooled Gravmag System Flight Unit Nuclear Pulse Thruster Utility Hacking Suite Device Advanced Sensor Array Storage Large Storage Unit Processor Improved Signal Interpreter Hackware Hacking Suite Protection Medium Armor Plating Weapon Cooled Plasma Rifle Energy Gun Cooled Plasma Rifle Energy Cannon EM Pulse Cannon Ballistic Gun Hypervelocity Railgun Ballistic Cannon Light Antimatter Cannon Launcher Smartbomb Launcher Special Weapon Remote Datajack Impact Weapon Maul Slashing Weapon Greatsword Build | -11 -10 -10 -9 -9 -9 -8 -8 -7 -7 -7 -6 -6 -6 -6 -5 -5 -5 -5 -5 -4 -4 -4 -4 -4 -3 -3 -3 -2 -2 -2 -1 ------- Run | Yrd Mat Min Mat Min Exi Min Mat Fac Was Fac Fac Low Low Dat Pro Fac Upp Upp Zhi Pro Fac Upp Upp War Pro Res Arm Res Qua Sec Acc Slots Evolved 18 | . . . 2 . . . 2 2 . . 2 . . . . 2 . . . . 2 . . . . 2 . 2 . . 2 Power 1 | . . . . . . . . . . . . . . . . . . . . . . . . . . . . 1 . . . Propulsion 5 | . . . 2 . . . . 1 . . 1 . . . . . . . . . 1 . . . . . . . . . . Utility 11 | . . . . . . . 2 1 . . 1 . . . . 2 . . . . 1 . . . . 2 . 1 . . 1 Weapon 1 | . . . . . . . . . . . . . . . . . . . . . . . . . . . . . . . 1 Parts Attached 367 | 5 6 . 38 . . . 32 8 2 18 24 . 3 . . 22 7 3 6 1 34 . 5 17 1 26 44 30 12 14 9 Power 22 | 1 . . 3 . . . 1 1 1 1 2 . . . . 2 . . . . 1 . 1 . . 1 2 5 . . . Engine 3 | 1 . . 2 . . . . . . . . . . . . . . . . . . . . . . . . . . . . Core 8 | . . . 1 . . . 1 1 1 1 2 . . . . 1 . . . . . . . . . . . . . . . Reactor 11 | . . . . . . . . . . . . . . . . 1 . . . . 1 . 1 . . 1 2 5 . . . Propulsion 68 | 1 1 . 13 . . . 11 1 . 6 5 . . . . 3 . . 3 . 7 . . 4 . 2 3 7 . 1 . Treads . | . . . . . . . . . . . . . . . . . . . . . . . . . . . . . . . . Leg 11 | 1 1 . 9 . . . . . . . . . . . . . . . . . . . . . . . . . . . . Wheel 1 | . . . . . . . . 1 . . . . . . . . . . . . . . . . . . . . . . . Hover 48 | . . . 4 . . . 10 . . 1 3 . . . . 3 . . 3 . 7 . . 4 . 2 3 7 . 1 . Flight 8 | . . . . . . . 1 . . 5 2 . . . . . . . . . . . . . . . . . . . . Utility 143 | 1 2 . 3 . . . 8 4 . 4 7 . 3 . . 13 3 2 3 . 16 . 4 9 1 15 22 10 5 5 3 Device 96 | . . . . . . . 3 . . 1 4 . 2 . . 10 3 1 2 . 12 . 4 5 1 15 17 8 3 3 2 Storage 11 | 1 . . 1 . . . . 1 . 1 . . . . . 1 . . . . . . . 1 . . 2 1 1 1 . Processor 11 | . 1 . . . . . . 1 . 2 1 . . . . . . 1 . . 1 . . 1 . . 2 1 . . . Hackware 17 | . . . 1 . . . 2 2 . . 1 . 1 . . 2 . . . . 3 . . 2 . . . . 1 1 1 Protection 8 | . 1 . 1 . . . 3 . . . 1 . . . . . . . 1 . . . . . . . 1 . . . . Artifact . | . . . . . . . . . . . . . . . . . . . . . . . . . . . . . . . . Weapon 134 | 2 3 . 19 . . . 12 2 1 7 10 . . . . 4 4 1 . 1 10 . . 4 . 8 17 8 7 8 6 Energy Gun 42 | 1 . . 2 . . . 7 1 . 1 1 . . . . 2 2 . . . 7 . . 2 . 1 7 2 2 4 . Energy Cannon 9 | . . . 1 . . . 2 . . 2 2 . . . . . . . . . 2 . . . . . . . . . . Ballistic Gun 43 | 1 2 . 12 . . . 2 1 . 3 . . . . . . . . . . . . . . . 2 7 4 3 2 4 Ballistic Cannon 5 | . . . . . . . . . . . 1 . . . . . . . . . . . . . . 4 . . . . . Launcher 17 | . 1 . 4 . . . . . . . 1 . . . . . 2 1 . 1 1 . . . . 1 2 . 2 1 . Special Weapon 3 | . . . . . . . . . . . . . . . . . . . . . . . . 2 . . 1 . . . . Impact Weapon 4 | . . . . . . . 1 . 1 1 1 . . . . . . . . . . . . . . . . . . . . Slashing Weapon 11 | . . . . . . . . . . . 4 . . . . 2 . . . . . . . . . . . 2 . 1 2 Piercing Weapon . | . . . . . . . . . . . . . . . . . . . . . . . . . . . . . . . . Special Melee Weapon . | . . . . . . . . . . . . . . . . . . . . . . . . . . . . . . . . Unidentified Prototypes 52 | . . . 3 . . . 4 1 . 2 4 . . . . 4 . . 3 . 4 . . 7 . 9 2 4 4 1 . Corrupted Parts 1 | . . . . . . . 1 . . . . . . . . . . . . . . . . . . . . . . . . System Corruption 2 | . . . . . . . 2 . . . . . . . . . . . . . . . . . . . . . . . . Parts Lost 46 | . . . 3 . . . 12 . 1 9 1 . . . . 8 1 . . . 1 . . . . . 5 3 1 . 1 Power 5 | . . . 1 . . . . . 1 1 1 . . . . . . . . . . . . . . . 1 . . . . Propulsion 21 | . . . 2 . . . 9 . . 3 . . . . . 4 1 . . . . . . . . . 1 1 . . . Utility 9 | . . . . . . . 1 . . 1 . . . . . 2 . . . . 1 . . . . . 2 1 1 . . Weapon 11 | . . . . . . . 2 . . 4 . . . . . 2 . . . . . . . . . . 1 1 . . 1 Highest Loss Streak 4 | . . . 2 . . . 4 . 1 4 1 . . . . 3 4 . . . 1 . . . . . 2 1 1 . 1 To Critical Strikes . | . . . . . . . . . . . . . . . . . . . . . . . . . . . . . . . . Average Slot Usage (%) 85 | . 81 100 95 100 100 100 94 67 84 79 84 86 86 86 86 80 46 49 51 75 92 94 94 93 94 93 94 87 93 90 94 Core 3 | . . . 3 11 11 11 8 5 7 5 6 6 6 6 6 3 5 5 5 5 . . . . . . . . . . . Reactor 2 | . . . . . . . . . . . . . . . . 1 . . . . 4 5 5 5 5 4 3 4 8 8 8 Leg 3 | . 22 28 37 . . . . . . . . . . . . . . . . . . . . . . . . . . . . Hover 21 | . . . 1 44 44 44 34 7 7 4 3 13 13 13 13 19 5 5 8 23 35 36 36 36 36 32 33 28 30 30 28 Flight 4 | . . . . . . . . 7 7 12 31 20 20 20 20 7 . . . . . . . . . . . . . . . Device 10 | . . . . . . . 7 . . . 4 13 10 6 6 9 8 7 6 11 10 15 15 14 15 21 20 23 19 17 16 Storage 6 | . 14 14 11 11 11 11 8 4 7 7 6 6 6 6 6 5 5 5 5 5 5 5 5 5 5 4 5 7 5 7 8 Processor 5 | . 1 . . . . . . 6 7 11 14 6 6 6 6 5 5 9 11 11 9 5 5 5 5 4 4 4 7 4 4 Hackware 12 | . . . 1 11 11 11 16 23 23 13 8 13 15 20 20 16 11 11 11 11 14 15 15 15 15 14 14 9 11 13 19 Energy Gun 2 | . 5 . . . . . 6 . 3 . . . . . . 1 . . . . 8 10 10 5 5 4 3 2 3 3 2 Ballistic Gun 4 | . 21 28 21 22 22 22 5 6 7 9 . . . . . . . . . . . . . . . 3 4 5 4 3 9 Peak Build Rating 211 | 5 8 8 20 17 18 18 32 41 41 46 65 65 65 65 65 84 62 67 79 91 133 131 134 143 143 161 168 197 198 196 211 Average Rating 89 | 4 5 8 12 17 17 18 25 29 39 38 54 65 65 65 65 74 48 50 50 89 125 131 132 137 139 153 161 178 191 186 208 On Entrance 75 | . 5 8 8 17 17 18 18 12 41 37 41 65 65 65 65 65 46 60 44 79 91 131 131 133 143 139 157 159 197 177 196 Naked Turns . | . . . . . . . . . . . . . . . . . . . . . . . . . . . . . . . . Heaviest Build 100 | 11 14 14 38 31 31 31 54 23 23 27 30 25 25 24 24 56 51 50 41 50 62 54 61 70 70 68 82 90 99 100 98 Greatest Support 111 | 10 20 20 49 24 24 24 28 28 28 28 32 29 29 29 29 54 11 11 44 44 84 70 70 84 82 82 111 96 96 96 96 Greatest Overweight (x) 4 | 1 1 . 1 1 1 1 4 3 . 1 1 . . . . 1 4 4 3 1 1 . . . . 1 1 1 1 1 1 Average Overweight (x) . | . . . . 1 1 1 . . . . . . . . . . 2 2 1 . . . . . . . . . . . . Largest Inventory Capacity 15 | 8 8 8 15 15 15 15 15 10 10 10 10 10 10 10 10 15 15 15 15 15 15 15 15 15 15 15 15 15 15 15 15 Average Capacity 13 | 7 8 8 14 15 15 15 14 8 10 10 10 10 10 10 10 10 15 15 15 15 15 15 15 15 15 15 15 15 15 15 15 Most Carried 15 | 5 8 8 15 14 15 15 15 8 7 10 10 10 10 10 10 14 15 15 15 15 15 15 15 15 15 15 15 15 15 15 15 Average Carried 12 | 2 6 8 13 14 14 15 13 5 6 8 9 10 10 10 10 9 12 13 14 13 14 15 14 14 15 14 14 14 14 14 14 Final Capacity 15 | 8 8 8 15 15 15 15 5 10 10 10 10 10 10 10 10 15 15 15 15 15 15 15 15 15 15 15 15 15 15 15 15 Final Carried 15 | 4 8 8 14 14 15 15 5 7 6 10 10 10 10 10 10 14 11 15 15 15 15 15 15 15 15 15 14 15 14 15 14 Class Distribution -------------------- 48% | Hacker-Mutant 29% | Hacker-Scout 8% | Mutant 5% | Scavenger-Mutant 5% | Hacker-Sprinter Dominant Class ---------------- Mutant | -10/Materials Mutant | -10/Mines Mutant | -9/Materials Scavenger-Mutant | -9/Mines Scavenger-Mutant | -9/Exiles Scavenger-Mutant | -8/Mines Hacker-Mutant | -8/Materials Hacker-Mutant | -7/Factory Hacker-Mutant | -7/Waste Hacker-Mutant | -7/Factory Hacker-Mutant | -6/Factory Hacker-Mutant | -6/Lower Caves Hacker-Mutant | -6/Lower Caves Hacker-Mutant | -6/Data Miner Hacker-Mutant | -5/Proximity Caves Hacker-Mutant | -5/Factory Hacker-Mutant | -5/Upper Caves Hacker-Mutant | -5/Upper Caves Hacker-Mutant | -5/Zhirov Hacker-Mutant | -4/Proximity Caves Hacker-Mutant | -4/Factory Hacker-Scout | -4/Upper Caves Hacker-Scout | -4/Upper Caves Hacker-Scout | -4/Warlord Hacker-Scout | -3/Proximity Caves Hacker-Scout | -3/Research Hacker-Scout | -3/Armory Hacker-Scout | -2/Research Hacker-Scout | -2/Quarantine Hacker-Scout | -2/Section 7 Wizard-Scout | -1/Access Resources | -11 -10 -10 -9 -9 -9 -8 -8 -7 -7 -7 -6 -6 -6 -6 -5 -5 -5 -5 -5 -4 -4 -4 -4 -4 -3 -3 -3 -2 -2 -2 -1 ----------- Run | Yrd Mat Min Mat Min Exi Min Mat Fac Was Fac Fac Low Low Dat Pro Fac Upp Upp Zhi Pro Fac Upp Upp War Pro Res Arm Res Qua Sec Acc Matter Collected 6881 | 250 149 . 717 84 . . 524 . . 394 252 10 181 . . 246 112 119 . 285 404 . 50 205 10 167 1533 576 100 464 49 Remotely . | . . . . . . . . . . . . . . . . . . . . . . . . . . . . . . . . Salvage Created 8798 | 51 208 . 1052 . . . 1224 . . 445 207 10 44 . . 1114 107 63 . 154 900 . . . . 139 1951 837 45 212 35 Parts 448 | 3 13 . 69 . . . 62 . . 34 10 . 3 . . 49 3 4 . 13 27 . . . . 7 96 38 2 13 2 Haulers Intercepted 19 | . 1 . 4 . . . 2 . . 2 1 . . . . 3 . . . . 3 . . . . 1 . 2 . . . Recyclers Shooed 4 | . . . 1 . . . . . . 2 . . . . . . . . . . . . . . . . . . . 1 . Parts Field Recycled . | . . . . . . . . . . . . . . . . . . . . . . . . . . . . . . . . Retrieved Matter . | . . . . . . . . . . . . . . . . . . . . . . . . . . . . . . . . Parts Self-Destructed 47 | . . . . . . . . . . . . . 7 . 3 . 2 11 . 9 . . 6 . 9 . . . . . . Prevented . | . . . . . . . . . . . . . . . . . . . . . . . . . . . . . . . . Kills | -11 -10 -10 -9 -9 -9 -8 -8 -7 -7 -7 -6 -6 -6 -6 -5 -5 -5 -5 -5 -4 -4 -4 -4 -4 -3 -3 -3 -2 -2 -2 -1 ------- Run | Yrd Mat Min Mat Min Exi Min Mat Fac Was Fac Fac Low Low Dat Pro Fac Upp Upp Zhi Pro Fac Upp Upp War Pro Res Arm Res Qua Sec Acc Combat Hostiles Destroyed 114 | . 6 . 22 . . . 17 . . 8 1 . 1 . . 5 4 1 . 8 8 . . . . . 23 7 . 3 . Melee 4 | . . . . . . . . . . . . . 1 . . 3 . . . . . . . . . . . . . . . Guns 59 | . 3 . 11 . . . 5 . . 7 . . . . . 2 1 . . . 4 . . . . . 19 7 . . . Cannons 11 | . . . . . . . 9 . . 1 1 . . . . . . . . . . . . . . . . . . . . AOE 37 | . 3 . 11 . . . . . . . . . . . . . 3 1 . 8 4 . . . . . 4 . . 3 . Classes Destroyed 21 | 1 4 . 5 . . . 2 . . 1 1 . . . . . 2 . . 1 . . . . . . 4 . . . . Worker 7 | . 1 . . . . . . . . 1 . . . . . 3 . . . . . . . . . . . . . 2 . Builder 3 | . . . . . . . . . . . 1 . . . . 2 . . . . . . . . . . . . . . . Tunneler 3 | 2 . . . . . . . . . . . . . . . . . . . . 1 . . . . . . . . . . Hauler 19 | . 1 . 4 . . . 2 . . 2 1 . . . . 3 . . . . 3 . . . . 1 . 2 . . . Recycler 5 | . . . 1 . . . 1 . . . . . . . . 2 . . . . . . . . . . . . . 1 . Mechanic 2 | . . . . . . . . . . . . . . . . . . . . . . . . . . . 2 . . . . Operator 10 | . . . 2 . . . . . . 1 1 . . . . 3 . . . . 2 . . . . . 1 . . . . Drone 2 | . . . . . . . . . . . . . . . . . . . . 2 . . . . . . . . . . . Watcher 15 | . . . 1 . . . 2 . . . . . . . . 2 . . . . 4 . . . . 1 1 1 1 1 1 Swarmer 19 | . 3 . 3 . . . . . . . . . . . . 2 . . . 4 3 . . . . . . 1 . 3 . Cutter 1 | . . . . . . . . . . . . . . . . . . . . . . . . . . . 1 . . . . Saboteur 1 | . . . . . . . . . . . . . . . . . . . . . . . . . . . 1 . . . . Grunt 41 | . 3 . 12 . . . 7 . . 4 1 . . . . . 1 . . 2 3 . . . . . 8 . . . . Brawler 5 | . . . 1 . . . . . . . . . . . . . . 1 . . . . . . . . 2 1 . . . Duelist 1 | . . . . . . . . . . . . . . . . . 1 . . . . . . . . . . . . . . Protector 2 | . . . . . . . . . . . . . . . . . . . . . . . . . . . 2 . . . . Sentry 14 | . . . 6 . . . 5 . . . . . . . . 1 . . . . 1 . . . . . . 1 . . . Specialist 2 | . . . . . . . 2 . . . . . . . . . . . . . . . . . . . . . . . . Hunter 12 | . . . . . . . 3 . . 1 . . . . . . 1 . . . 1 . . . . . 3 3 . . . Programmer 9 | . . . . . . . . . . 3 . . 1 . . 2 . . . . . . . . . . 2 1 . . . Behemoth 1 | . . . . . . . . . . . . . . . . . 1 . . . . . . . . . . . . . . Armor Guard 4 | . . . . . . . . . . . . . . . . . . . . . . . . . . . 4 . . . . Best Kill Streak 7 | 1 4 . 7 . . . 4 . . 3 2 . 1 . . 3 2 1 . 4 6 . . . . 1 3 3 1 4 1 Combat Bots Only 6 | . 3 . 5 . . . 3 . . 2 1 . 1 . . 1 2 1 . 4 6 . . . . . 3 2 . 3 . Max Kills in Single Turn 4 | 1 2 . 2 . . . 1 . . 1 1 . 1 . . 1 2 1 . 4 2 . . . . 1 2 3 1 3 1 Gunslinging 1 | . . . 1 . . . . . . . . . . . . . . . . . . . . . . . 1 . . . . Exploded 4 | . 2 . 2 . . . . . . . . . . . . . 2 1 . 4 2 . . . . . 2 . . 2 . Melee 1 | . . . . . . . . . . . . . 1 . . 1 . . . . . . . . . . . . . . . Uniques/NPCs Destroyed . | . . . . . . . . . . . . . . . . . . . . . . . . . . . . . . . . Combat | -11 -10 -10 -9 -9 -9 -8 -8 -7 -7 -7 -6 -6 -6 -6 -5 -5 -5 -5 -5 -4 -4 -4 -4 -4 -3 -3 -3 -2 -2 -2 -1 -------- Run | Yrd Mat Min Mat Min Exi Min Mat Fac Was Fac Fac Low Low Dat Pro Fac Upp Upp Zhi Pro Fac Upp Upp War Pro Res Arm Res Qua Sec Acc Hostile Shots Fired 672 | . 27 . 84 . . . 113 . . 94 6 . 7 . 6 84 15 . . . 9 . 2 . 1 . 106 34 29 46 9 Missed 227 | . 8 . 26 . . . 33 . . 27 2 . 3 . 2 32 2 . . . 3 . 1 . . . 44 11 10 20 3 Damage Taken 8377 | . 214 . 797 . . . 1171 . 332 1287 77 . 64 . 35 1230 93 . . . 313 . 22 15 11 . 1497 394 300 433 92 Core 1504 | . 36 . 93 . . . 253 . 205 410 38 . . . 35 239 . . . . . . . . 11 . 78 25 23 58 . Absorbed by Shields 801 | . . . . . . . . . . . . . . . . . . . . . 27 . . 10 11 . 165 94 136 268 90 Redirected to Shielding 76 | . . . . . . . . . . . . . . . . . . . . . . . . . . . 76 . . . . Ignored by Resistances 28 | . . . . . . . 28 . . . . . . . . . . . . . . . . . . . . . . . . Regen/Repaired (Parts) 429 | . . . . . . . 96 . . . . . . . . . . . . . 100 . . . . . 19 . 214 . . Core Remaining (%) 79 | 100 . 85 . . . 76 54 . . 12 . . . . 91 . . . . 76 . . . . 99 . 94 . . 92 100 Volleys Fired 639 | 5 18 . 98 . . . 78 . . 65 6 . . . . 14 12 1 . 6 56 6 5 8 1 32 142 30 17 28 11 Largest 3 | 2 2 . 2 . . . 2 . . 2 2 . . . . 1 2 1 . 1 2 1 1 1 1 2 2 2 2 2 3 Hottest 152 | 60 40 . 50 . . . 108 . . 90 60 . . . . 72 144 46 . 46 144 72 72 72 72 132 112 80 80 144 152 Shots Fired 1044 | 10 34 . 185 . . . 141 . . 96 12 . . . . 14 13 1 . 6 94 6 5 8 1 35 241 48 29 35 30 Gun 920 | 10 32 . 172 . . . 97 . . 82 . . . . . 14 2 . . . 90 6 5 1 1 34 234 48 29 33 30 Cannon 71 | . . . . . . . 44 . . 14 12 . . . . . . . . . . . . . . 1 . . . . . Launcher 43 | . 2 . 13 . . . . . . . . . . . . . 11 1 . 6 4 . . . . . 4 . . 2 . Special 10 | . . . . . . . . . . . . . . . . . . . . . . . . 7 . . 3 . . . . Kinetic 579 | 5 32 . 172 . . . 51 . . 73 . . . . . . . . . . . . . . . 3 147 37 23 8 28 Thermal 313 | 5 . . . . . . . . . 14 12 . . . . 14 2 . . . 90 6 5 1 1 32 87 11 6 25 2 Explosive 43 | . 2 . 13 . . . . . . . . . . . . . 11 1 . 6 4 . . . . . 4 . . 2 . Electromagnetic 99 | . . . . . . . 90 . . 9 . . . . . . . . . . . . . . . . . . . . . Robot Hit Streak 18 | 4 7 . 18 . . . 14 . . 5 5 . . . . 7 2 . . 3 10 . . 8 . 2 9 11 5 3 3 Robot Miss Streak 8 | 1 2 . 6 . . . 8 . . 8 1 . . . . 2 . . . . 5 . . 1 1 . 7 3 2 3 4 Penetration Max 2 | . . . . . . . . . . . . . . . . . . . . . . . . . . . 2 2 . . . Secondary Targets 6 | . 1 . 1 . . . 1 . . . . . . . . . . . . . . . . . . . 3 . . . . Max Gunslinging Chain 1 | . 1 . 1 . . . 1 . . . . . . . . . . . . . . . . . . . 1 . . . . Shots Hit Robots 570 | 7 24 . 110 . . . 97 . . 55 13 2 2 . . 28 2 . . 1 37 . . 6 . 2 123 24 15 10 12 Core Hits 320 | 3 13 . 50 . . . 42 . . 27 5 2 1 . . 16 10 2 . 10 24 . . . . 2 78 14 5 11 5 Critical Kills 27 | . 1 . . . . . . . . . . . . . . . . . . . . . . . . . 15 9 1 . 1 Critical Parts Destroyed 50 | . . . 1 . . . 1 . . 1 . . . . . . . . . . . . . . . . 32 8 6 1 . Critical Strikes 96 | . 1 . 1 . . . 1 . . 2 . . . . . 1 1 . . . 11 . . . . . 50 17 8 2 1 Burn 16 | . . . . . . . . . . . . . . . . 1 1 . . . 11 . . . . . 2 . . 1 . Destroy 79 | . 1 . 1 . . . 1 . . 1 . . . . . . . . . . . . . . . . 48 17 8 1 1 Corrupt 1 | . . . . . . . . . . 1 . . . . . . . . . . . . . . . . . . . . . Melee Attacks 114 | . . . . . . . 2 . 12 4 6 3 15 . 17 47 . . . . . . . . . . . . . 3 5 Impact 21 | . . . . . . . 2 . 12 4 3 . . . . . . . . . . . . . . . . . . . . Slashing 93 | . . . . . . . . . . . 3 3 15 . 17 47 . . . . . . . . . . . . . 3 5 Piercing . | . . . . . . . . . . . . . . . . . . . . . . . . . . . . . . . . Sneak Attacks 12 | . . . . . . . . . . 1 1 . . . . 10 . . . . . . . . . . . . . . . Combat Hostiles . | . . . . . . . . . . . . . . . . . . . . . . . . . . . . . . . . Follow-up Attacks . | . . . . . . . . . . . . . . . . . . . . . . . . . . . . . . . . Damage Inflicted 18013 | 92 483 . 2171 . . . 1949 . . 1086 594 188 109 . . 2106 1160 83 . 1098 2222 . . . . 98 2687 302 120 1406 59 Guns 8099 | 92 239 . 1193 . . . 878 . . 818 . . . . . 563 52 . . . 1541 . . . . 98 1824 302 120 320 59 Cannons 1531 | . . . . . . . 1071 . . 164 296 . . . . . . . . . . . . . . . . . . . . Explosions 6141 | . 244 . 978 . . . . . . . . . . . . . 1108 83 . 1098 681 . . . . . 863 . . 1086 . Melee 2219 | . . . . . . . . . . 81 298 188 109 . . 1543 . . . . . . . . . . . . . . . Ramming 23 | . . . . . . . . . . 23 . . . . . . . . . . . . . . . . . . . . . Kinetic 4038 | 37 239 . 1193 . . . 347 . . 805 . . . . . . . . . . . . . . . . 973 233 120 32 59 Thermal 4240 | 55 . . 263 . . . . . . 164 296 . . . . 563 52 . . . 1541 . . . . 98 851 69 . 288 . Explosive 5878 | . 244 . 715 . . . . . . . . . . . . . 1108 83 . 1098 681 . . . . . 863 . . 1086 . Electromagnetic 1615 | . . . . . . . 1602 . . 13 . . . . . . . . . . . . . . . . . . . . . Impact 81 | . . . . . . . . . . 81 . . . . . . . . . . . . . . . . . . . . . Slashing 2138 | . . . . . . . . . . . 298 188 109 . . 1543 . . . . . . . . . . . . . . . Piercing . | . . . . . . . . . . . . . . . . . . . . . . . . . . . . . . . . Highest Corruption 18 | . 2 2 . . . . 2 . 18 18 . . 1 1 1 2 2 2 2 2 . . . . . . 6 3 4 . . Average Corruption 4 | . 2 2 . . . . 2 . 12 16 . . 1 1 1 2 2 2 2 2 . . . . . . 3 2 3 . . Corruption Purged 4 | . . . . . . . . . . 4 . . . . . . . . . . . . . . . . . . . . . Corruption Blocked . | . . . . . . . . . . . . . . . . . . . . . . . . . . . . . . . . Effects 140 | . 2 . . . . . . . 8 52 . . 2 . 3 1 8 10 3 3 . . . . . . 31 15 2 . . Message Errors 32 | . . . . . . . . . 1 13 . . . . . 1 1 3 1 . . . . . . . 5 7 . . . Matter Fused 33 | . . . . . . . . . 2 11 . . 1 . . . 4 1 1 . . . . . . . 9 3 1 . . Heat Flow Errors 22 | . . . . . . . . . 2 7 . . . . 1 . 2 3 . . . . . . . . 5 2 . . . Energy Discharges 10 | . . . . . . . . . . 2 . . . . 1 . . 1 . 3 . . . . . . 3 . . . . Parts Rejected 2 | . . . . . . . . . . 1 . . . . . . . . . . . . . . . . 1 . . . . Parts Fused 3 | . . . . . . . . . . 2 . . . . 1 . . . . . . . . . . . . . . . . Data Loss (minor) 18 | . 1 . . . . . . . 1 8 . . . . . . 1 1 . . . . . . . . 4 2 . . . Data Loss (major) 6 | . 1 . . . . . . . . 2 . . . . . . . 1 1 . . . . . . . 1 . . . . Misfires 4 | . . . . . . . . . . 1 . . . . . . . . . . . . . . . . 2 . 1 . . Alerts 2 | . . . . . . . . . . . . . 1 . . . . . . . . . . . . . 1 . . . . Misdirections 3 | . . . . . . . . . 2 1 . . . . . . . . . . . . . . . . . . . . . Weapon Failures 5 | . . . . . . . . . . 4 . . . . . . . . . . . . . . . . . 1 . . . Overload Shots 203 | . . . . . . . . . . . . . . . . 14 2 . . . 64 6 5 1 1 32 36 9 6 25 2 Effects 7 | . . . . . . . . . . . . . . . . 1 1 . . . . . . . . 1 1 . 2 1 . Energy Bleed 3 | . . . . . . . . . . . . . . . . . . . . . . . . . . . 1 . 1 1 . Heat Surge 2 | . . . . . . . . . . . . . . . . . 1 . . . . . . . . 1 . . . . . Short Circuit 2 | . . . . . . . . . . . . . . . . 1 . . . . . . . . . . . . 1 . . Overflow Damage 904 | . 28 . 46 . . . 15 . . 61 141 . 14 . . 343 1 . . 69 42 . . . . . 28 . . 116 . Projectiles 15 | . . . . . . . 15 . . . . . . . . . . . . . . . . . . . . . . . . Explosions 330 | . 28 . 46 . . . . . . . . . . . . . 1 . . 69 42 . . . . . 28 . . 116 . Melee 559 | . . . . . . . . . . 61 141 . 14 . . 343 . . . . . . . . . . . . . . . Knockbacks . | . . . . . . . . . . . . . . . . . . . . . . . . . . . . . . . . Impact . | . . . . . . . . . . . . . . . . . . . . . . . . . . . . . . . . Kinetic . | . . . . . . . . . . . . . . . . . . . . . . . . . . . . . . . . Secondary . | . . . . . . . . . . . . . . . . . . . . . . . . . . . . . . . . Self-Inflicted Damage 387 | . 4 . 87 . . . . . . 9 . . . . . . . . . . 112 . . . . . . . . 175 . Shots 8 | . 1 . 4 . . . . . . . . . . . . . . . . . 1 . . . . . . . . 2 . Rammed 7 | . . . . . . . . . . 7 . . . . . . . . . . . . . . . . . . . . . Targets Rammed 7 | . . . . . . . . . . 7 . . . . . . . . . . . . . . . . . . . . . Kicked . | . . . . . . . . . . . . . . . . . . . . . . . . . . . . . . . . Crushed . | . . . . . . . . . . . . . . . . . . . . . . . . . . . . . . . . Highest Temperature 499 | . 28 . 16 . . . 499 . 222 304 183 . . . 175 156 250 248 . . 206 70 60 4 12 175 204 251 . 153 72 Average Temperature 78 | . 12 . 4 . . . 127 . 95 116 75 . . . 96 68 124 119 . . 60 31 26 3 9 26 33 102 . 29 29 Received Heat Transfer 1642 | . 102 . 219 . . . 576 . . 174 36 . 9 . . 285 18 . . . . . . . . . 179 9 27 8 . Effects 11 | . . . . . . . 10 . . 1 . . . . . . . . . . . . . . . . . . . . . Shutdowns 2 | . . . . . . . 2 . . . . . . . . . . . . . . . . . . . . . . . . Interference 2 | . . . . . . . 1 . . 1 . . . . . . . . . . . . . . . . . . . . . Matter Decay 1 | . . . . . . . 1 . . . . . . . . . . . . . . . . . . . . . . . . Short Circuit 2 | . . . . . . . 2 . . . . . . . . . . . . . . . . . . . . . . . . Damage (minor) 1 | . . . . . . . 1 . . . . . . . . . . . . . . . . . . . . . . . . Damage (major) 3 | . . . . . . . 3 . . . . . . . . . . . . . . . . . . . . . . . . Siege Activations . | . . . . . . . . . . . . . . . . . . . . . . . . . . . . . . . . Robots Corrupted 3 | . . . . . . . 3 . . . . . . . . . . . . . . . . . . . . . . . . Combat Hostiles 3 | . . . . . . . 3 . . . . . . . . . . . . . . . . . . . . . . . . Parts Fried 7 | . . . . . . . 5 . . 2 . . . . . . . . . . . . . . . . . . . . . Impact Corruptions 1 | . . . . . . . . . . 1 . . . . . . . . . . . . . . . . . . . . . Robots Melted 2 | . . . . . . . . . . . . . . . . . . . . . 2 . . . . . . . . . . Combat Hostiles . | . . . . . . . . . . . . . . . . . . . . . . . . . . . . . . . . Parts Melted 11 | . . . . . . . . . . . . . . . . 2 1 . . . 6 . . . . . 1 . . 1 . Heat Transferred 9118 | 125 . . 150 . . . . . . 222 407 . . . . 1040 240 . . . 4190 . . . . 160 1814 130 . 640 . Parts Sabotaged . | . . . . . . . . . . . . . . . . . . . . . . . . . . . . . . . . Parts Stolen . | . . . . . . . . . . . . . . . . . . . . . . . . . . . . . . . . Parts Stripped . | . . . . . . . . . . . . . . . . . . . . . . . . . . . . . . . . Power Chain Reactions . | . . . . . . . . . . . . . . . . . . . . . . . . . . . . . . . . Alert | -11 -10 -10 -9 -9 -9 -8 -8 -7 -7 -7 -6 -6 -6 -6 -5 -5 -5 -5 -5 -4 -4 -4 -4 -4 -3 -3 -3 -2 -2 -2 -1 ------- Run | Yrd Mat Min Mat Min Exi Min Mat Fac Was Fac Fac Low Low Dat Pro Fac Upp Upp Zhi Pro Fac Upp Upp War Pro Res Arm Res Qua Sec Acc Peak Influence 2541 | 10 200 78 491 165 . . 349 172 64 227 123 . . . . 727 . . . . 512 . . . . 274 2541 2488 1430 1358 874 Initial 1399 | . 6 78 29 165 . . . 151 60 37 66 . . . . . . . . . 131 . . . . 111 109 1321 1399 696 814 Average 532 | 4 84 78 318 165 . . 147 168 59 86 49 . . . . 306 . . . . 244 . . . . 103 1210 2028 1241 936 828 Maximum Alert Level 5 | . 1 . 2 . . . 1 . . 1 . . . . . 3 . . . . 2 . . . . 1 5 5 4 4 3 Low Security (%) 43 | 100 80 100 10 100 . 100 57 100 100 89 100 . . . . 42 . . . . 53 . . . . 96 1 . . . . Level 1 20 | . 19 . 64 . . . 42 . . 10 . . . . . 19 . . . . 26 . . . . 3 15 . . . . Level 2 11 | . . . 25 . . . . . . . . . . . . 36 . . . . 19 . . . . . 16 . . 1 . Level 3 6 | . . . . . . . . . . . . . . . . 1 . . . . . . . . . . 10 . 30 70 100 Level 4 6 | . . . . . . . . . . . . . . . . . . . . . . . . . . . 19 17 69 27 . Level 5 4 | . . . . . . . . . . . . . . . . . . . . . . . . . . . 27 4 . . . High Security 6 | . . . . . . . . . . . . . . . . . . . . . . . . . . . 8 78 . . . Max Security . | . . . . . . . . . . . . . . . . . . . . . . . . . . . . . . . . Squads Dispatched 67 | . 1 . 2 . . . 3 . . 7 3 . . . . 7 . . . . 6 . . . . 3 23 1 4 3 4 Investigation 20 | . . . . . . . . . . 1 1 . . . . 3 . . . . 4 . . . . 2 7 1 1 . . Extermination 8 | . . . . . . . . . . 2 . . . . . 1 . . . . . . . . . . 4 . . 1 . Reinforcement 26 | . 1 . 2 . . . 3 . . 4 2 . . . . 3 . . . . 2 . . . . 1 2 . 1 1 4 Assault 13 | . . . . . . . . . . . . . . . . . . . . . . . . . . . 10 . 2 1 . Garrison . | . . . . . . . . . . . . . . . . . . . . . . . . . . . . . . . . Intercept . | . . . . . . . . . . . . . . . . . . . . . . . . . . . . . . . . Searches Triggered 1 | . . . . . . . . . . . . . . . . 1 . . . . . . . . . . . . . . . Construction Impeded 1 | . . . . . . . . . . . . . . . . . . . . . . . . . . . . . . 1 . Haulers Reinforced 3 | . . . . . . . . . . 2 1 . . . . . . . . . . . . . . . . . . . . Active Scanning Responses . | . . . . . . . . . . . . . . . . . . . . . . . . . . . . . . . . Cargo Convoy Interrupts . | . . . . . . . . . . . . . . . . . . . . . . . . . . . . . . . . Stealth | -11 -10 -10 -9 -9 -9 -8 -8 -7 -7 -7 -6 -6 -6 -6 -5 -5 -5 -5 -5 -4 -4 -4 -4 -4 -3 -3 -3 -2 -2 -2 -1 --------- Run | Yrd Mat Min Mat Min Exi Min Mat Fac Was Fac Fac Low Low Dat Pro Fac Upp Upp Zhi Pro Fac Upp Upp War Pro Res Arm Res Qua Sec Acc Distress Signals 28 | . . . 1 . . . 4 . . 3 . . . . . 3 . . . . . . . . . 1 7 8 1 . . Communications Jammed . | . . . . . . . . . . . . . . . . . . . . . . . . . . . . . . . . Distress Signals . | . . . . . . . . . . . . . . . . . . . . . . . . . . . . . . . . Times Spotted 471 | . 10 . 39 . . . 36 . 5 23 2 . 9 . 1 66 5 4 . 2 30 . 2 2 5 7 141 37 15 23 7 Peak Tracking Total 21 | . 5 . 6 . . . 4 . 4 6 1 . 4 . 1 9 3 4 . 3 6 . 2 10 4 6 21 21 12 16 3 Tactical Retreats 63 | . . . 1 . . . 7 . 1 1 . . 3 . 1 16 . . . 1 4 . . . 1 3 8 12 1 1 2 Traps | -11 -10 -10 -9 -9 -9 -8 -8 -7 -7 -7 -6 -6 -6 -6 -5 -5 -5 -5 -5 -4 -4 -4 -4 -4 -3 -3 -3 -2 -2 -2 -1 ------- Run | Yrd Mat Min Mat Min Exi Min Mat Fac Was Fac Fac Low Low Dat Pro Fac Upp Upp Zhi Pro Fac Upp Upp War Pro Res Arm Res Qua Sec Acc Traps Triggered 25 | . 1 . . . . . . 1 . 1 1 . . . . 1 . . . . 5 . . . . 3 9 1 . 2 . Indirectly . | . . . . . . . . . . . . . . . . . . . . . . . . . . . . . . . . Trap Hack Attempts . | . . . . . . . . . . . . . . . . . . . . . . . . . . . . . . . . Triggered . | . . . . . . . . . . . . . . . . . . . . . . . . . . . . . . . . Disarmed 5 | . . . . . . . . . . . . . . . . . . . . . . . . . . . . . . 5 . Reprogrammed . | . . . . . . . . . . . . . . . . . . . . . . . . . . . . . . . . Reused . | . . . . . . . . . . . . . . . . . . . . . . . . . . . . . . . . Traps Extracted . | . . . . . . . . . . . . . . . . . . . . . . . . . . . . . . . . Installed . | . . . . . . . . . . . . . . . . . . . . . . . . . . . . . . . . Triggered 13 | . . . . . . . . . . . . . . . . . . . . . . . 3 10 . . . . . . . Machines | -11 -10 -10 -9 -9 -9 -8 -8 -7 -7 -7 -6 -6 -6 -6 -5 -5 -5 -5 -5 -4 -4 -4 -4 -4 -3 -3 -3 -2 -2 -2 -1 ---------- Run | Yrd Mat Min Mat Min Exi Min Mat Fac Was Fac Fac Low Low Dat Pro Fac Upp Upp Zhi Pro Fac Upp Upp War Pro Res Arm Res Qua Sec Acc Machines Disabled 51 | . 1 . 1 . . . 1 . . . . 1 . . . 3 . . . . 4 1 . . . . 22 5 2 10 . Max in Single Turn 2 | . 1 . 1 . . . 1 . . . . 1 . . . . . . . . 2 1 . . . . 2 1 1 1 . Garrison Access 9 | . . . . . . . 1 . . . . . . . . 1 . . . . 3 . . . . 2 . 2 . . . Machines Repaired . | . . . . . . . . . . . . . . . . . . . . . . . . . . . . . . . . Machines Dismantled . | . . . . . . . . . . . . . . . . . . . . . . . . . . . . . . . . Machines Sabotaged . | . . . . . . . . . . . . . . . . . . . . . . . . . . . . . . . . Overloaded Fab Kills . | . . . . . . . . . . . . . . . . . . . . . . . . . . . . . . . . Hacking | -11 -10 -10 -9 -9 -9 -8 -8 -7 -7 -7 -6 -6 -6 -6 -5 -5 -5 -5 -5 -4 -4 -4 -4 -4 -3 -3 -3 -2 -2 -2 -1 --------- Run | Yrd Mat Min Mat Min Exi Min Mat Fac Was Fac Fac Low Low Dat Pro Fac Upp Upp Zhi Pro Fac Upp Upp War Pro Res Arm Res Qua Sec Acc Machines Accessed 133 | . 1 . 6 . 1 . 9 3 . 7 5 1 . 4 . 11 . 1 4 . 16 1 2 9 1 12 16 1 11 8 3 Terminals 66 | . 1 . 4 . . . 5 2 . 4 3 . . . . 7 . . . . 6 . . . 1 6 9 . 9 7 2 Fabricators 14 | . . . . . . . . . . 1 2 . . . . 3 . . . . 3 . . . . . 5 . . . . Repair Stations 8 | . . . . . . . 1 . . . . . . . . . . . . . 2 . . . . 1 2 . 2 . . Recycling Units 9 | . . . 1 . . . 2 1 . 2 . . . . . . . . . . 1 . . . . 1 . . . . 1 Scanalyzers 5 | . . . 1 . . . . . . . . . . . . . . . . . 1 . . . . 2 . . . 1 . Garrison Access 8 | . . . . . . . 1 . . . . . . . . 1 . . . . 3 . . . . 2 . 1 . . . Total Hacks 462 | . 4 . 18 . 23 . 43 8 . 19 15 1 . 33 . 49 . 1 17 . 53 1 5 15 1 47 42 3 31 28 5 Successful 316 | . 3 . 12 . 23 . 28 3 . 9 9 1 . 33 . 26 . 1 17 . 36 1 5 15 1 25 23 . 24 17 4 Failed 146 | . 1 . 6 . . . 15 5 . 10 6 . . . . 23 . . . . 17 . . . . 22 19 3 7 11 1 Catastrophic 16 | . . . 2 . . . . . . 3 1 . . . . 3 . . . . 2 . . . . 1 3 . 1 . . Database Lockouts . | . . . . . . . . . . . . . . . . . . . . . . . . . . . . . . . . Manual 203 | . 3 . 12 . . . 25 5 . 13 10 . . . . 34 . . . . 23 . . 1 . 23 18 . 16 19 1 Terminals 242 | . 4 . 11 . . . 27 6 . 10 11 . . . . 36 . . . . 26 . . . 1 30 23 . 27 27 3 Fabricators 44 | . . . . . . . . . . 3 4 . . . . 12 . . . . 12 . . . . . 13 . . . . Repair Stations 23 | . . . . . . . 6 . . . . . . . . . . . . . 4 . . . . 3 6 . 4 . . Recycling Units 26 | . . . 2 . . . 8 2 . 6 . . . . . . . . . . 3 . . . . 3 . . . . 2 Scanalyzers 18 | . . . 5 . . . . . . . . . . . . . . . . . 4 . . . . 8 . . . 1 . Garrison Access 13 | . . . . . . . 2 . . . . . . . . 1 . . . . 4 . . . . 3 . 3 . . . Terminal Hacks 166 | . 1 . 1 . 23 . 7 1 . 1 3 1 . 33 . 8 . 1 17 . 10 1 5 15 1 10 6 . 11 8 2 Record 63 | . . . . . 23 . . . . . . . . 11 . . . . 5 . . 1 4 14 1 . 1 . 3 . . Part Schematic 17 | . . . . . . . . . . . . . . 12 . . . . 4 . . . . . . . . . . 1 . Robot Schematic 7 | . . . . . . . . . . . . . . 7 . . . . . . . . . . . . . . . . . Robot Analysis 10 | . . . . . . . 1 1 . . . . . . . 1 . . 4 . . . . . . 1 . . . 1 1 Prototype ID Bank 8 | . . . . . . . 1 . . . . . . 3 . . . . 4 . . . . . . . . . . . . Open Door 7 | . . . . . . . . . . . . 1 . . . . . 1 . . . . 1 1 . . 1 . 1 . 1 Level Access Points 2 | . . . . . . . . . . 1 . . . . . . . . . . . . . . . 1 . . . . . Branch Access Points 7 | . 1 . 1 . . . . . . . 1 . . . . 1 . . . . 1 . . . . 1 1 . . . . Machine Index 3 | . . . . . . . . . . . . . . . . 1 . . . . . . . . . 1 . . 1 . . Terminal Index 2 | . . . . . . . . . . . . . . . . 1 . . . . 1 . . . . . . . . . . Fabricator Index 1 | . . . . . . . . . . . . . . . . . . . . . 1 . . . . . . . . . . Garrison Index 1 | . . . . . . . . . . . . . . . . . . . . . . . . . . . 1 . . . . Unreport Threat 15 | . . . . . . . 1 . . . 1 . . . . 2 . . . . 3 . . . . 2 2 . 3 1 . Locate Traps 5 | . . . . . . . 1 . . . . . . . . 1 . . . . . . . . . 1 . . 1 1 . Disarm Traps 1 | . . . . . . . . . . . . . . . . . . . . . . . . . . . . . . 1 . Patrol Status 1 | . . . . . . . 1 . . . . . . . . . . . . . . . . . . . . . . . . Hauler Manifests 5 | . . . . . . . 1 . . . 1 . . . . . . . . . 1 . . . . 1 . . 1 . . Registered Prototypes 1 | . . . . . . . . . . . . . . . . . . . . . 1 . . . . . . . . . . Zone Layout 10 | . . . . . . . 1 . . . . . . . . 1 . . . . 2 . . . . 2 . . 1 3 . Fabricator Hacks 21 | . . . . . . . . . . 1 1 . . . . 6 . . . . 6 . . . . . 7 . . . . Network Status 4 | . . . . . . . . . . 1 1 . . . . 1 . . . . . . . . . . 1 . . . . Load Schematic 9 | . . . . . . . . . . . . . . . . 3 . . . . 3 . . . . . 3 . . . . Build 8 | . . . . . . . . . . . . . . . . 2 . . . . 3 . . . . . 3 . . . . Repair Station Hacks 19 | . . . . . . . 6 . . . . . . . . . . . . . 4 . . . . 1 4 . 4 . . Scan Component 10 | . . . . . . . 3 . . . . . . . . . . . . . 2 . . . . 1 2 . 2 . . Repair 9 | . . . . . . . 3 . . . . . . . . . . . . . 2 . . . . . 2 . 2 . . Recycling Unit Hacks 9 | . . . 1 . . . 2 1 . 2 . . . . . . . . . . 1 . . . . 1 . . . . 1 Retrieve Components 9 | . . . 1 . . . 2 1 . 2 . . . . . . . . . . 1 . . . . 1 . . . . 1 Scanalyzer 11 | . . . 5 . . . . . . . . . . . . . . . . . 3 . . . . 3 . . . . . Insert Component 5 | . . . 2 . . . . . . . . . . . . . . . . . 1 . . . . 2 . . . . . Analyze 6 | . . . 3 . . . . . . . . . . . . . . . . . 2 . . . . 1 . . . . . Garrison Access Hacks 7 | . . . . . . . 1 . . . . . . . . 1 . . . . 3 . . . . 2 . . . . . Seal Access 7 | . . . . . . . 1 . . . . . . . . 1 . . . . 3 . . . . 2 . . . . . Unauthorized Hacks 83 | . 2 . 5 . . . 12 1 . 5 5 . . . . 11 . . . . 9 . . . . 8 6 . 9 9 1 Terminals 69 | . 2 . 4 . . . 9 . . 2 4 . . . . 9 . . . . 9 . . . . 8 5 . 9 8 . Track 9 | . . . . . . . 3 . . . . . . . . . . . . . 1 . . . . 1 . . 2 2 . Assimilate 2 | . . . . . . . . . . . . . . . . . . . . . 1 . . . . 1 . . . . . Botnet 48 | . 1 . 4 . . . 5 . . 2 3 . . . . 7 . . . . 6 . . . . 5 4 . 6 5 . Disrupt 2 | . . . . . . . . . . . . . . . . 1 . . . . . . . . . . 1 . . . . Operators 8 | . 1 . . . . . 1 . . . 1 . . . . 1 . . . . 1 . . . . 1 . . 1 1 . Fabricators 5 | . . . . . . . . . . 1 1 . . . . 2 . . . . . . . . . . 1 . . . . Prioritize 3 | . . . . . . . . . . . . . . . . 2 . . . . . . . . . . 1 . . . . Haulers 2 | . . . . . . . . . . 1 1 . . . . . . . . . . . . . . . . . . . . Repair Stations . | . . . . . . . . . . . . . . . . . . . . . . . . . . . . . . . . Recycling Units 8 | . . . 1 . . . 3 1 . 2 . . . . . . . . . . . . . . . . . . . . 1 Reject 2 | . . . . . . . 1 . . 1 . . . . . . . . . . . . . . . . . . . . . Mask 6 | . . . 1 . . . 2 1 . 1 . . . . . . . . . . . . . . . . . . . . 1 Scanalyzers 1 | . . . . . . . . . . . . . . . . . . . . . . . . . . . . . . 1 . Researchers 1 | . . . . . . . . . . . . . . . . . . . . . . . . . . . . . . 1 . Garrison Access . | . . . . . . . . . . . . . . . . . . . . . . . . . . . . . . . . Data Cores Recovered 3 | . . . . . . . . . . . . . . . . 1 . . . . 1 . . . . . 1 . . . . Used . | . . . . . . . . . . . . . . . . . . . . . . . . . . . . . . . . Hacking Detections 90 | . 1 . 6 . . . 7 2 . 5 5 . . . . 10 . . . . 11 . . . . 11 14 1 7 8 2 Full Trace Events 15 | . . . . . . . . . . 1 1 . . . . 3 . . . . 4 . . . . 1 4 1 . . . Feedback Events 2 | . . . . . . . . . . . . . . . . . . . . . 1 . . . . . . 1 . . . Corruption 1 | . . . . . . . . . . . . . . . . . . . . . . . . . . . . 1 . . . Hackware Fried 1 | . . . . . . . . . . . . . . . . . . . . . 1 . . . . . . . . . . Feedback Blocked . | . . . . . . . . . . . . . . . . . . . . . . . . . . . . . . . . Robot Schematics Acquired 7 | . . . . . . . . . . . . . . 7 . . . . . . . . . . . . . . . . . Robots Built . | . . . . . . . . . . . . . . . . . . . . . . . . . . . . . . . . Authchips . | . . . . . . . . . . . . . . . . . . . . . . . . . . . . . . . . Time . | . . . . . . . . . . . . . . . . . . . . . . . . . . . . . . . . Total Robot Build Rating . | . . . . . . . . . . . . . . . . . . . . . . . . . . . . . . . . Part Schematics Acquired 21 | . . . 2 . . . . . . . . . . 12 . . . . 4 . 1 . . . . 1 . . . 1 . Parts Built 9 | . . . . . . . . . . . . . . . . 2 . . . . 4 . . . . . 3 . . . . Authchips . | . . . . . . . . . . . . . . . . . . . . . . . . . . . . . . . . Time 598 | . . . . . . . . . . . . . . . . 126 . . . . 255 . . . . . 217 . . . . Total Part Build Rating 65 | . . . . . . . . . . . . . . . . 12 . . . . 32 . . . . . 21 . . . . Parts Repaired 9 | . . . . . . . 3 . . . . . . . . . . . . . 2 . . . . . 2 . 2 . . Time 421 | . . . . . . . 96 . . . . . . . . . . . . . 124 . . . . . 76 . 125 . . Parts Recycled . | . . . . . . . . . . . . . . . . . . . . . . . . . . . . . . . . Recycled Matter . | . . . . . . . . . . . . . . . . . . . . . . . . . . . . . . . . Retrieved Matter . | . . . . . . . . . . . . . . . . . . . . . . . . . . . . . . . . Retrieved Components 22 | . . . 6 . . . 9 . . 4 . . . . . . . . . . . . . . . 1 . . . . 2 Parts Scanalyzed 4 | . . . 2 . . . . . . . . . . . . . . . . . 1 . . . . 1 . . . . . Part Schematics Acquired 4 | . . . 2 . . . . . . . . . . . . . . . . . 1 . . . . 1 . . . . . Parts Damaged 1 | . . . . . . . . . . . . . . . . . . . . . . . . . . 1 . . . . . Bothacking | -11 -10 -10 -9 -9 -9 -8 -8 -7 -7 -7 -6 -6 -6 -6 -5 -5 -5 -5 -5 -4 -4 -4 -4 -4 -3 -3 -3 -2 -2 -2 -1 ------------ Run | Yrd Mat Min Mat Min Exi Min Mat Fac Was Fac Fac Low Low Dat Pro Fac Upp Upp Zhi Pro Fac Upp Upp War Pro Res Arm Res Qua Sec Acc Used RIF Installer . | . . . . . . . . . . . . . . . . . . . . . . . . . . . . . . . . Robots Hacked . | . . . . . . . . . . . . . . . . . . . . . . . . . . . . . . . . Non-combat . | . . . . . . . . . . . . . . . . . . . . . . . . . . . . . . . . Combat . | . . . . . . . . . . . . . . . . . . . . . . . . . . . . . . . . Robot Hacks Applied . | . . . . . . . . . . . . . . . . . . . . . . . . . . . . . . . . Relay Couplers Released 11 | . . . . . . . . . . 3 . . . . . 4 . . . . . . . . . . . 4 . . . Machine Destruction 4 | . . . . . . . . . . . . . . . . . . . . . . . . . . . . 4 . . . Programmers 7 | . . . . . . . . . . 3 . . . . . 4 . . . . . . . . . . . . . . . Fabnet Peak Effective % . | . . . . . . . . . . . . . . . . . . . . . . . . . . . . . . . . Robots Rewired 7 | . . . . . . . . . . . . . . . . . . . . . . . . 5 . . 2 . . . . Allies Hacked . | . . . . . . . . . . . . . . . . . . . . . . . . . . . . . . . . Hacks Repelled . | . . . . . . . . . . . . . . . . . . . . . . . . . . . . . . . . Allies | -11 -10 -10 -9 -9 -9 -8 -8 -7 -7 -7 -6 -6 -6 -6 -5 -5 -5 -5 -5 -4 -4 -4 -4 -4 -3 -3 -3 -2 -2 -2 -1 -------- Run | Yrd Mat Min Mat Min Exi Min Mat Fac Was Fac Fac Low Low Dat Pro Fac Upp Upp Zhi Pro Fac Upp Upp War Pro Res Arm Res Qua Sec Acc Total Allies 20 | . . . . . . . . . . . . . . . . . . . . . 1 . 3 5 . 1 10 . . . . Largest Group 10 | . . . . . . . . . . . . . . . . . . . . . 1 1 3 5 5 3 10 2 . . . Highest-Rated Group 481 | . . . . . . . . . . . . . . . . . . . . . 10 10 114 275 275 177 481 94 . . . Highest-Rated Ally 65 | . . . . . . . . . . . . . . . . . . . . . 10 10 38 65 65 65 58 47 . . . Total Orders 190 | . . . . . . . . . . . . . . . . 20 3 1 . 2 12 . 2 . 3 8 113 15 5 4 2 STAY 14 | . . . . . . . . . . . . . . . . . . . . . . . . . . . 14 . . . . FOLLOW 6 | . . . . . . . . . . . . . . . . . . . . . 1 . . . . . 3 2 . . . RETURN 170 | . . . . . . . . . . . . . . . . 20 3 1 . 2 11 . 2 . 3 8 96 13 5 4 2 Ally Attacks 1224 | . . . . . . . . . . . . . . . . 90 11 11 . 9 60 . 19 . 31 32 818 96 30 17 . Total Damage 24452 | . . . . . . . . . . . . . . . . 1629 204 439 . 96 1064 . 321 . 894 857 16667 1602 487 192 . Kills 125 | . . . . . . . . . . . . . . . . 16 1 3 . 2 8 . 2 . 6 4 74 7 1 1 . Allies Corrupted 2 | . . . . . . . . . . . . . . . . . . . . . . . . . . . 2 . . . . Allies Melted 2 | . . . . . . . . . . . . . . . . . . . . . . . . . . . . 2 . . . Intel | -11 -10 -10 -9 -9 -9 -8 -8 -7 -7 -7 -6 -6 -6 -6 -5 -5 -5 -5 -5 -4 -4 -4 -4 -4 -3 -3 -3 -2 -2 -2 -1 ------- Run | Yrd Mat Min Mat Min Exi Min Mat Fac Was Fac Fac Low Low Dat Pro Fac Upp Upp Zhi Pro Fac Upp Upp War Pro Res Arm Res Qua Sec Acc Robot Analysis Total 10 | . . . . . . . 1 1 . . . . . . . 1 . . 4 . . . . . . 1 . . . 1 1 Derelict Logs Recovered 4 | . . . . . . . . . . . . 1 2 . . . . . . 1 . . . . . . . . . . . Drone Launches 270 | . . . . . . . . . . . . . . . . 30 3 1 . 2 11 . 4 . 5 15 167 19 8 4 1 Drone Recoveries 259 | . . . . . . . . . . . . . . . . 28 3 1 . 2 11 . 4 . 5 15 159 19 7 3 2 Exploration | -11 -10 -10 -9 -9 -9 -8 -8 -7 -7 -7 -6 -6 -6 -6 -5 -5 -5 -5 -5 -4 -4 -4 -4 -4 -3 -3 -3 -2 -2 -2 -1 ------------- Run | Yrd Mat Min Mat Min Exi Min Mat Fac Was Fac Fac Low Low Dat Pro Fac Upp Upp Zhi Pro Fac Upp Upp War Pro Res Arm Res Qua Sec Acc Turns Passed 15915 | 93 392 40 1220 91 154 16 1151 238 180 1052 396 225 472 45 552 1176 705 516 173 345 1149 162 273 1048 166 645 1703 769 323 286 159 Spaces Moved 19318 | 43 223 34 589 85 142 15 698 261 142 878 776 386 490 81 625 1576 372 294 145 393 1920 422 426 917 214 1321 2171 1879 871 538 391 Core 47 | 11 . . . . . . 36 . . . . . . . . . . . . . . . . . . . . . . . . Treads . | . . . . . . . . . . . . . . . . . . . . . . . . . . . . . . . . Legs 834 | 32 223 34 545 . . . . . . . . . . . . . . . . . . . . . . . . . . . . Wheels 932 | . . . . . . . . 101 142 689 . . . . . . . . . . . . . . . . . . . . . Hover 16579 | . . . 44 85 142 15 653 . . 10 198 386 490 81 625 1576 372 294 145 393 1920 422 426 917 214 1321 2171 1879 871 538 391 Flight 926 | . . . . . . . 9 160 . 179 578 . . . . . . . . . . . . . . . . . . . . Fastest Speed 15 | 50 120 120 108 108 108 108 40 40 100 24 21 56 56 56 56 46 150 150 43 43 34 35 35 28 28 28 15 20 20 20 20 Average Speed 53 | 154 145 120 136 108 108 108 107 84 100 85 30 56 56 56 56 53 180 170 107 80 40 35 35 31 29 30 30 29 20 22 24 Slowest Speed 300 | 190 190 120 190 108 108 108 300 250 100 120 94 56 56 56 56 111 230 230 190 90 90 35 35 35 30 100 93 109 82 82 82 Overloaded Moves 8 | . . . . . . . . . . . . . . . . . . . . . . . . . . . 8 . . . . Propulsion Burnouts . | . . . . . . . . . . . . . . . . . . . . . . . . . . . . . . . . Robots Hopped . | . . . . . . . . . . . . . . . . . . . . . . . . . . . . . . . . Cave-ins Triggered 1 | . . . . . . . . . 1 . . . . . . . . . . . . . . . . . . . . . . Exploration Rate (%) 47 | 5 35 13 62 30 50 8 67 8 96 30 23 58 68 68 69 35 62 52 61 65 43 64 55 94 43 43 67 45 66 33 13 Regions Visited 31 Branch Regions 19 Pre-discovered Areas 8 | . . . . . 1 . . . . . . 1 1 1 . . . . 3 1 . . . . . . . . . . . Known Exits Taken 23 | . 1 . 1 . . . . . . 1 1 1 1 1 1 1 1 1 1 1 1 1 1 1 1 1 1 1 1 1 . Unknown Exits Taken 6 | 1 . 1 . 1 1 1 1 . . . . . . . . . . . . . . . . . . . . . . . . Scrap Searched 18 | . . . . 1 . . . . . . . . 3 . 1 . . . . 4 . 3 2 . 4 . . . . . . Spaces Dug 166 | . . . . . . . 2 . 12 3 3 . 12 . 17 23 . . . . 17 2 4 1 . 27 18 2 5 12 6 Terrain Destroyed 687 | . 7 . 58 . . . 2 . 12 5 3 . 12 . 17 26 79 28 . 86 101 5 5 1 1 31 57 4 6 134 7 Melee 79 | . . . . . . . 2 . 12 3 3 . 12 . 17 23 . . . . . . . . . . . . . 2 5 Projectile 130 | . . . . . . . . . . 2 . . . . . 3 1 . . . 34 5 5 1 1 31 24 3 5 13 2 AOE 470 | . 7 . 58 . . . . . . . . . . . . . 78 28 . 86 67 . . . . . 27 . . 119 . Terrain Rammed . | . . . . . . . . . . . . . . . . . . . . . . . . . . . . . . . . Walls Destroyed . | . . . . . . . . . . . . . . . . . . . . . . . . . . . . . . . . Machines Disabled . | . . . . . . . . . . . . . . . . . . . . . . . . . . . . . . . . Actions | -11 -10 -10 -9 -9 -9 -8 -8 -7 -7 -7 -6 -6 -6 -6 -5 -5 -5 -5 -5 -4 -4 -4 -4 -4 -3 -3 -3 -2 -2 -2 -1 --------- Run | Yrd Mat Min Mat Min Exi Min Mat Fac Was Fac Fac Low Low Dat Pro Fac Upp Upp Zhi Pro Fac Upp Upp War Pro Res Arm Res Qua Sec Acc Total 23645 | 60 258 33 839 84 142 14 962 278 155 1090 912 388 655 80 792 1819 396 309 159 416 2203 429 544 1673 315 1532 2991 2052 988 657 420 Wait 2560 | . . . 58 . . . 113 . . 84 58 . 148 . 151 124 . 7 . 15 151 2 104 713 100 117 407 69 75 64 . Move 19287 | 42 222 33 588 84 141 14 697 261 141 877 775 385 489 80 624 1575 371 293 144 392 1919 421 425 916 213 1320 2170 1878 870 537 390 Hop . | . . . . . . . . . . . . . . . . . . . . . . . . . . . . . . . . Pick Up 238 | 8 8 . 27 . 1 . 23 8 . 25 13 . . . . 13 1 1 4 2 16 . 1 3 . 5 51 17 3 6 2 Fast Attach 141 | 1 2 . 6 . . . 7 2 . 1 11 . . . . 11 . . 6 . 16 . . 12 . 25 11 15 7 5 3 Attach 120 | 4 1 . 10 . . . 14 5 1 14 8 . . . . 6 7 3 1 1 11 . . 2 . 1 14 7 2 6 2 Detach 27 | . . . 1 . . . . . . 2 1 . . . . 4 5 4 . . 2 . . 2 . 1 2 2 1 . . Swap 114 | . 3 . 22 . . . 11 1 1 3 5 . 3 . . 6 . . . . 7 . 5 3 1 . 19 9 5 6 4 Drop 262 | . 4 . 29 . . . 17 1 . 8 21 . . . . 19 . . 4 . 25 . 3 14 . 24 56 24 8 2 3 Fire 639 | 5 18 . 98 . . . 78 . . 65 6 . . . . 14 12 1 . 6 56 6 5 8 1 32 142 30 17 28 11 Melee 114 | . . . . . . . 2 . 12 4 6 3 15 . 17 47 . . . . . . . . . . . . . 3 5 Ram 7 | . . . . . . . . . . 7 . . . . . . . . . . . . . . . . . . . . . Kick . | . . . . . . . . . . . . . . . . . . . . . . . . . . . . . . . . Crush . | . . . . . . . . . . . . . . . . . . . . . . . . . . . . . . . . Escape Stasis 105 | . . . . . . . . . . . 8 . . . . . . . . . . . . . . 5 92 . . . . Rewire . | . . . . . . . . . . . . . . . . . . . . . . . . . . . . . . . . Trap . | . . . . . . . . . . . . . . . . . . . . . . . . . . . . . . . . Miscellaneous 31 | . . . . . . . . . . . . . . . . . . . . . . . 1 . . 2 27 1 . . . Route ------- -11/Scrapyard -10/Materials (discovered 2 exits: *Min x2) -10/Mines -9/Materials (discovered 3 exits: *Mat / *Min / Sto) -9/Mines -9/Exiles -8/Mines -8/Materials (discovered 2 exits: *Fac x2) -7/Factory -7/Waste -7/Factory (discovered 4 exits: *Fac x4) -6/Factory (discovered 3 exits: *Fac / *Low x2) -6/Lower Caves -6/Lower Caves (discovered 2 exits: *Fac / *Dat) -6/Data Miner -5/Proximity Caves -5/Factory (discovered 4 exits: *Fac x2 / *Upp x2) -5/Upper Caves -5/Upper Caves -5/Zhirov -4/Proximity Caves -4/Factory (discovered 5 exits: *Res / *Upp x2 / *Ext x2) -4/Upper Caves -4/Upper Caves -4/Warlord -3/Proximity Caves -3/Research (discovered 6 exits: *Res x3 / *Arm / Tes x2) -3/Armory -2/Research -2/Quarantine -2/Section 7 -1/Access To Fleet Rendezvous History --------- Turn | Location | Event 21 | -11/Scrapyard | Discovered new exit (range 14) 94 | -11/Scrapyard | Entered Materials 141 | -10/Materials | Identified exit to Mines 314 | -10/Materials | Build established: Mutant 486 | -10/Materials | Entered Mines 518 | -10/Mines | Discovered new exit (range 8) 526 | -10/Mines | Entered Materials 526 | -9/Materials | Evolved 2 slots: Propulsion x2 930 | -9/Materials | Discovered new exit (range 12) 1386 | -9/Materials | Discovered new exit (range 7) 1437 | -9/Materials | Build established: Scavenger-Mutant 1452 | -9/Materials | Identified exit to Mines 1452 | -9/Materials | Identified exit to Storage 1746 | -9/Materials | Entered Mines 1758 | -9/Mines | Assembled infested the area 1763 | -9/Mines | Assisted by a Guerilla fighting off Assembled 1833 | -9/Mines | Deemed a non-threat by the Exiles lab entrance 1833 | -9/Mines | Discovered new exit (range 5) 1837 | -9/Mines | Entered Exiles 1883 | -9/Exiles | Met 8R-AWN 1899 | -9/Exiles | Met EX-HEX 1928 | -9/Exiles | Met EX-BIN 1943 | -9/Exiles | Met EX-DEC 1948 | -9/Exiles | Learned location of Zion (-7) 1981 | -9/Exiles | Discovered new exit (range 10) 1991 | -9/Exiles | Entered Mines 1997 | -8/Mines | Discovered new exit (range 10) 2007 | -8/Mines | Entered Materials 2007 | -8/Materials | Evolved 2 slots: Utility x2 2440 | -8/Materials | Build established: Hacker-Mutant 2550 | -8/Materials | Lost 4 parts (1n1u2w) 2556 | -8/Materials | Repaired Hover Unit? 2659 | -8/Materials | Repaired Imp. Hover Unit 2705 | -8/Materials | Repaired EM Pulse Cannon 2721 | -8/Materials | Discovered new exit (range 11) 3140 | -8/Materials | Discovered new exit (range 16) 3152 | -8/Materials | Lost 3 parts (3n) 3158 | -8/Materials | Entered Factory 3158 | -7/Factory | Evolved 2 slots: Propulsion x1, Utility x1 3396 | -7/Factory | Sucked down chute 3396 | -7/Factory | Entered Waste 3411 | -7/Waste | EMP discharged 3411 | -7/Waste | System corruption reached 10% 3430 | -7/Waste | Spotted C-40 Crusher 3441 | -7/Waste | Spotted C-40 Crusher 3461 | -7/Waste | Spotted C-40 Crusher 3511 | -7/Waste | EMP discharged 3520 | -7/Waste | Spotted C-40 Crusher 3523 | -7/Waste | Spotted C-40 Crusher 3554 | -7/Waste | Crushed by falling debris 3565 | -7/Waste | Discovered new exit (range 12) 3575 | -7/Waste | Identified exit to Factory 3576 | -7/Waste | Entered Factory 3684 | -7/Factory | Identified exit to Factory 4361 | -7/Factory | Core integrity fell below 50% 4394 | -7/Factory | Lost 3 parts (1p2w) 4518 | -7/Factory | Lost 4 parts (1n1u2w) 4522 | -7/Factory | Core integrity fell below 20% 4628 | -7/Factory | Entered another Factory area 4628 | -6/Factory | Evolved 2 slots: Propulsion x1, Utility x1 4811 | -6/Factory | Identified exit to Lower Caves 4837 | -6/Factory | Discovered new exit (range 7) 4838 | -6/Factory | Identified exit to Factory 5024 | -6/Factory | Entered Lower Caves 5025 | -6/Lower Caves | Encountered a Warlord checkpoint 5199 | -6/Lower Caves | Discovered new exit (range 8) 5211 | -6/Lower Caves | Murdered Warlord Statue 5216 | -6/Lower Caves | Identified exit to Lower Caves 5249 | -6/Lower Caves | Entered another Lower Caves area 5278 | -6/Lower Caves | Spotted B-75 Beast 5311 | -6/Lower Caves | Discovered exit to Factory (range 15) 5519 | -6/Lower Caves | Learned location of 1 exit from Factory 5669 | -6/Lower Caves | Learned location of Extension (-4) 5718 | -6/Lower Caves | Discovered new exit (range 6) 5720 | -6/Lower Caves | Identified exit to Data Miner 5721 | -6/Lower Caves | Entered Data Miner 5721 | -6/Data Miner | Discovered new exit (range 6) 5732 | -6/Data Miner | Met Data Miner 5742 | -6/Data Miner | Acquired the access code to Warlord's prototype stash 5742 | -6/Data Miner | Learned location of Section 7 (-2) 5753 | -6/Data Miner | Received God Mode back door access code from Data Miner 5766 | -6/Data Miner | Identified exit to Proximity Caves 5766 | -6/Data Miner | Entered Proximity Caves 6056 | -5/Proximity Caves | Spotted B-75 Beast 6057 | -5/Proximity Caves | Encountered an infested base 6302 | -5/Proximity Caves | Discovered exit to Factory (range 4) 6318 | -5/Proximity Caves | Entered Factory 6318 | -5/Factory | Evolved 2 slots: Utility x2 6319 | -5/Factory | Identified exit to Factory 6335 | -5/Factory | Identified exit to Upper Caves 6478 | -5/Factory | Fabricated Combat Drone Bay? 7078 | -5/Factory | Discovered exit to Factory (range 15) 7218 | -5/Factory | Search patrols dispatched 7302 | -5/Factory | Fabricated Combat Drone Bay? 7494 | -5/Factory | Entered Upper Caves 7526 | -5/Upper Caves | Lost 4 parts (2n1u1w) 7900 | -5/Upper Caves | Spotted B-75 Beast 7916 | -5/Upper Caves | Destroyed B-75 Beast 8158 | -5/Upper Caves | Discovered new exit (range 14) 8185 | -5/Upper Caves | Identified exit to Upper Caves 8199 | -5/Upper Caves | Entered another Upper Caves area 8706 | -5/Upper Caves | Discovered new exit (range 7) 8713 | -5/Upper Caves | Identified exit to Zhirov 8715 | -5/Upper Caves | Entered Zhirov 8715 | -5/Zhirov | Discovered new exit (range 3) 8775 | -5/Zhirov | Learned location of Quarantine (-2) 8775 | -5/Zhirov | Learned location of Testing (-3) 8775 | -5/Zhirov | Learned location of Command (-1) 8817 | -5/Zhirov | Found Alien Artifact 8817 | -5/Zhirov | Identified Integrated Reactor 8817 | -5/Zhirov | Installed Integrated Reactor, increased core energy generation (+10) 8871 | -5/Zhirov | Found Alien Artifact 8887 | -5/Zhirov | Identified exit to Proximity Caves 8888 | -5/Zhirov | Entered Proximity Caves 9222 | -4/Proximity Caves | Discovered exit to Factory (range 13) 9233 | -4/Proximity Caves | Entered Factory 9233 | -4/Factory | Evolved 2 slots: Propulsion x1, Utility x1 9323 | -4/Factory | Fabricated Cmb. Linear Gravjet (x2) 9326 | -4/Factory | Adv. Hacking Suite fried by hacking feedback 9436 | -4/Factory | Identified exit to Upper Caves 9436 | -4/Factory | Identified exit to Extension 9717 | -4/Factory | Repaired Cld. Plasma Rifle? 9738 | -4/Factory | Repaired Enh. Nuclear Core? 9785 | -4/Factory | Fabricated Assault Drone Bay (x1) 10064 | -4/Factory | Found Prototype Processor 10064 | -4/Factory | Identified Exp. Signal Interpreter 10198 | -4/Factory | Fabricated Assault Drone Bay? 10246 | -4/Factory | Discovered new exit (range 15) 10252 | -4/Factory | Identified exit to Research 10382 | -4/Factory | Entered Upper Caves 10382 | -4/Upper Caves | Accompanied by 1 ally 10536 | -4/Upper Caves | Discovered new exit (range 16) 10542 | -4/Upper Caves | Identified exit to Upper Caves 10544 | -4/Upper Caves | Entered another Upper Caves area 10544 | -4/Upper Caves | Accompanied by 1 ally 10605 | -4/Upper Caves | Build established: Hacker-Scout 10780 | -4/Upper Caves | A Commander dispatched an escort 10782 | -4/Upper Caves | Learned Factory security intel 10782 | -4/Upper Caves | Learned Armory security intel 10792 | -4/Upper Caves | Discovered new exit (range 5) 10794 | -4/Upper Caves | Identified exit to Warlord 10817 | -4/Upper Caves | Entered Warlord 10817 | -4/Warlord | Accompanied by 3 allies 10818 | -4/Warlord | Commander's escort returned to base 10818 | -4/Warlord | Commander's escort returned to base 10818 | -4/Warlord | Commander's escort returned to base 10845 | -4/Warlord | Discovered new exit (range 9) 10951 | -4/Warlord | Met Warlord 10954 | -4/Warlord | Opened Warlord's prototype stash 10956 | -4/Warlord | Found Prototype Processor 10956 | -4/Warlord | Identified Spectral Analyzer 10962 | -4/Warlord | Found Prototype Hackware 10962 | -4/Warlord | Identified System Mapper 10967 | -4/Warlord | Found Prototype Device 10967 | -4/Warlord | Identified System Purifier 10976 | -4/Warlord | Warlord's base attacked by MAIN.C 11064 | -4/Warlord | Found Prototype Energy Gun 11064 | -4/Warlord | Identified Vortex Rail 11326 | -4/Warlord | Warlord forces counterattacked 11498 | -4/Warlord | Lost 4 allies 11651 | -4/Warlord | Warlord base infiltrated, sounded retreat 11652 | -4/Warlord | Enhanced Grunt warped into view 11652 | -4/Warlord | Enhanced Grunt warped into view 11652 | -4/Warlord | Enhanced Grunt warped into view 11652 | -4/Warlord | Enhanced Demolisher warped into view 11652 | -4/Warlord | Enhanced Demolisher warped into view 11652 | -4/Warlord | Enhanced Demolisher warped into view 11776 | -4/Warlord | Spotted Striker 11829 | -4/Warlord | Identified exit to Proximity Caves 11865 | -4/Warlord | Entered Proximity Caves 11865 | -3/Proximity Caves | Accompanied by 5 allies 11940 | -3/Proximity Caves | Discovered exit to Research (range 10) 11957 | -3/Proximity Caves | Attracted the attention of an 0b10 checkpoint 12031 | -3/Proximity Caves | Entered Research 12031 | -3/Research | Accompanied by 3 allies 12031 | -3/Research | Evolved 2 slots: Utility x2 12205 | -3/Research | Found Prototype Device 12205 | -3/Research | Identified Exp. Shield Generator 12237 | -3/Research | Identified exit to Research 12237 | -3/Research | Identified exit to Armory 12237 | -3/Research | Identified exit to Testing 12282 | -3/Research | Found Prototype Launcher 12282 | -3/Research | Identified Com. Tesla Bomb Launcher 12426 | -3/Research | Found Prototype Device 12426 | -3/Research | Identified Exp. Thermal Defense Suite 12676 | -3/Research | Entered Armory 12726 | -3/Armory | Repaired Broken Imp. Energy Mantle 13153 | -3/Armory | Fabricated Assault Drone Bay? 13389 | -3/Armory | Repaired Mak. Sensor Array 13426 | -3/Armory | First assault squad dispatched 13534 | -3/Armory | Fabricated Assault Drone Bay? 13824 | -3/Armory | Spotted Armor Guard 13824 | -3/Armory | Spotted Armor Guard 13830 | -3/Armory | Destroyed Armor Guard 13855 | -3/Armory | Destroyed Armor Guard 13872 | -3/Armory | Found Prototype Device 13872 | -3/Armory | Identified Exp. Weapon Cycler 13884 | -3/Armory | Spotted Armor Guard 13884 | -3/Armory | Spotted Armor Guard 13920 | -3/Armory | Destroyed Armor Guard 13920 | -3/Armory | Destroyed Armor Guard 13969 | -3/Armory | Breached Obliterator storage 14207 | -3/Armory | Spotted B-86 Titan 14241 | -3/Armory | High security lockdown imminent 14270 | -3/Armory | Fabricated Assault Drone Bay? 14321 | -3/Armory | Assisted by bots powering up and referring to "LRC-V3" 14321 | -3/Armory | High security lockdown engaged 14353 | -3/Armory | Discovered exit to Research (range 7) 14379 | -3/Armory | Entered Research 14379 | -2/Research | Accompanied by 2 allies 14379 | -2/Research | Warlord forces began assault on 0b10 14379 | -2/Research | Evolved 2 slots: Power x1, Utility x1 14408 | -2/Research | Lost 8 allies 14489 | -2/Research | Research machine network offline 14546 | -2/Research | High security lockdown imminent 14625 | -2/Research | Spotted B-90 Cyclops 14626 | -2/Research | High security lockdown engaged 14758 | -2/Research | Met DD-05H 14758 | -2/Research | Met up with Warlord 14810 | -2/Research | Met PL-HR7 14892 | -2/Research | Borebot progress halted 14966 | -2/Research | Found Fusion Bomb Launcher 15047 | -2/Research | Lost 6 allies 15077 | -2/Research | Spotted B-90 Cyclops 15113 | -2/Research | Borebot progress halted 15145 | -2/Research | Discovered new exit (range 5) 15148 | -2/Research | Identified exit to Quarantine 15148 | -2/Research | Entered Quarantine 15156 | -2/Quarantine | Found Alien Artifact 15156 | -2/Quarantine | Identified Terrabomb 15156 | -2/Quarantine | Used Terrabomb 15206 | -2/Quarantine | Repaired Imp. Energy Mantle 15219 | -2/Quarantine | Found Prototype Launcher 15219 | -2/Quarantine | Identified Tactical Quantum Warhead 15318 | -2/Quarantine | Found Prototype Launcher 15318 | -2/Quarantine | Identified Enh. Gamma Bomb Array 15352 | -2/Quarantine | Spotted Alpha 7 15398 | -2/Quarantine | First assault squad dispatched 15409 | -2/Quarantine | Found Alien Artifact 15410 | -2/Quarantine | Identified Core Reset Matrix 15410 | -2/Quarantine | Used Core Reset Matrix 15414 | -2/Quarantine | Detected hypermatrix surge 15414 | -2/Quarantine | Sensed 12 artifacts in vicinity 15434 | -2/Quarantine | Repaired Cld. Plasma Rifle 15454 | -2/Quarantine | Spotted Fortress 15469 | -2/Quarantine | Discovered new exit (range 6) 15470 | -2/Quarantine | Identified exit to Section 7 15471 | -2/Quarantine | Entered Section 7 15472 | -2/Section 7 | Sensed 24 artifacts in vicinity 15493 | -2/Section 7 | Found Integrated Mediator 15494 | -2/Section 7 | Installed Integrated Mediator, increased core attachment efficiency 15510 | -2/Section 7 | Found Integrated Reactor 15512 | -2/Section 7 | Installed Integrated Reactor, increased core energy generation (+10) 15557 | -2/Section 7 | Found Microwarp Drive 15726 | -2/Section 7 | Found Integrated Reactor 15726 | -2/Section 7 | Installed Integrated Reactor, increased core energy generation (+10) 15733 | -2/Section 7 | Found Prototype Hackware 15733 | -2/Section 7 | Identified Exp. Hacking Suite 15741 | -2/Section 7 | Spotted B-90 Cyclops 15746 | -2/Section 7 | Discovered new exit (range 16) 15752 | -2/Section 7 | First assault squad dispatched 15754 | -2/Section 7 | Identified exit to Access 15757 | -2/Section 7 | Entered Access 15757 | -1/Access | Accompanied by 1 ally 15757 | -1/Access | Evolved 2 slots: Utility x1, Weapon x1 15830 | -1/Access | Spotted B-99 Colossus 15915 | -1/Access | Discovered new exit (range 7) 15916 | -1/Access | Identified exit to Surface 15916 | *** | Heading to fleet! Last Messages --------------- 15867_ Knocked back. 15867_ HV Slug penetrates H-81 Overseer. 15867_ HV Slug penetrates Wall. 15868_ U-05 Engineer builds a Wall. 15871_ HV Slug penetrates Wall. 15872_ U-05 Engineer builds a Wall. 15874_ Penetrated by Slug. 15874_ Knocked back. 15874_ Acquired 6 matter. 15876_ U-05 Engineer builds a Wall. 15878_ Acquired 8 matter. 15905_ ALERT: Suspicious intruders detected, dispatching Cutter reinforcements to area. 15914_ Connecting with Terminal... >>Open(Door) Sealed Barrier opened. 15915_ The Access Shell folds into the floor. 15915_ EXIT=FOUND 15916_ EXIT=IDENTIFIED: SURFACE [Achievement: Home At Last?] Map ----- +----------------------------------------------------+ | ?????????????????????????????????????????????????? | | ?????????????????????????????????????????????????? | | ????????????#????????????????????????????????????? | | ?????????????????????????????????????????????????? | | ?????????????????????????????????????????????????? | | ???????#???????????????????????"?????????????????? | | ?????????????????????#????????????? ?????????????? | | ?????????????????????????? ??????????????????????? | | ?????????????????????????????????????????????????? | | ???????????????#?????????????????????????????????? | | ???????##############################????????????? | | ????# t ????????????? | | ????# g R???????????? | | ????#??#???#######"## ""#?#???????????????? | | ?????? ?##########"## ""#?????????????????? | | ?? ?????# = ] ### ""#?????????????????? | | ????????# ### T#?????????????????? | | ????? ??# """"" "## ""#?????????????????? | | ???????## """"" =### ""#??????#??????????? | | ????????# """"" ### ""###????#??????????? | | ????????# """"" ## #????????????????? | | ???? ???# """"" ### ##????????????????? | | ????????+ #?# #?????????????????? | | ????????# #?# #?????????????????? | | #####+###"#########?# #?????????????????? | | # ##?????????# @" #?????????????????? | | # ! #?????????## "" #?#???????????????? | | # #????????#?# #???????#?????????? | | # " #??????????# #?????????????????? | | # """ #??????????# #?????????????????? | | # """ #??????????#""""""""""#?????????????????? | | # " ##??????????????????"???????????????????? | | # "#??????????"??"??????#?????????????????? | | # ##???????#???????"""""#?????????????????? | | ########"######??????????? #?????????????????? | | #???????BB?? BB #?????????????????? | | #???????BB? BB #?????????????????? | | " ##????????? #??????#??????????? | | """ =] #??????? ?? #?????????????????? | | """ ""Y"" ##????????? ??????????????????? | | " """"" #????#???? ?#?????????????????? | | #?#?#???#? #????????????????????? | | #???????#? ##???????????????????? | | #####/################## #????????????????????? | | ??# #????????????????????? | | ??# #????????????????????? | | ??# #????????????????????? | | ??# """"" #????????????????????? | | ??######## """"" ########???????#????????????? | | ?????#?#?# """"" #???????????????????????????? | +----------------------------------------------------+ Best States ------------- Heat Dissipation 52 Energy Generation 71 Energy Capacity 860 Matter Stores 300 Matter Capacity 300 Sight Range 16 Robot Scan Range 19 Terrain Scan Range 24 Terrain Scan Density 10 Cloak Strength 4 Base Temperature (-) 200 EM Shielding 4 Armor Coverage 225 Resistance: KI 30 Resistance: TH 20 Propulsion Shielding 66 Evasion (%) 65 Targeting Accuracy 8 Target Analysis 8 Matter Filtering 50 Offensive Hacking 50 Defensive Hacking 26 Item Schematics ----------------- Exp. Terrain Scan Processor | -2/Section 7 | Hacked Robot Schematics ------------------ None Fabricated ------------ Combat Drone Bay | x1 | -5/Factory Combat Drone Bay | x1 | -5/Factory Cmb. Linear Gravjet | x2 | -4/Factory | Preloaded Assault Drone Bay | x1 | -4/Factory Assault Drone Bay | x1 | -4/Factory Assault Drone Bay | x1 | -3/Armory Assault Drone Bay | x1 | -3/Armory Assault Drone Bay | x1 | -3/Armory Alien Tech Used ----------------- Integrated Reactor Terrabomb Core Reset Matrix Integrated Mediator Achievements -------------- Home At Last? Challenges ------------ None Game ------ Seed PlasmaPowerSabre Manual? 0 Play Time 04:30:21 Cumulative 220.1 hours Start 2024.08.13 @ 08:37:10 End 2024.08.13 @ 13:22:06 Sessions 1 Manual Loads 0 Difficulty Rogue Special Mode None Game No. 89 Rogue 75 Adventurer 14 Explorer 0 Win Type 2 Total 15 Types 12/0/1/1/0/0/0/0/1 Lore% 45 Gallery% 74 Achievement% 65 Wizard Run 0 Options --------- Layout 1 ASCII 0 Keyboard 0 Movement Mouse Keybinds 0 Fullscreen 1 Font 20/SmallcapsGlow Map View 50x35 Zoom Use 0% Tactical HUD 1 Map Filters NONE Filters NONE Steam 1 RUN: cd44a705-dee0-4671-8a76-9084962db20c